fUSD/lending_fUSD_20250514
["ID","MTS","AMOUNT","RATE_DAILY","PERIOD"]
[361059775,1747223465340,-400.0,0.00012081,2]
[361059776,1747223465349,-400.0,0.00012081,2]
[361059777,1747223465368,-400.0,0.00012081,2]
[361059778,1747223465378,-400.0,0.00012081,2]
[361059779,1747223465387,-1878.51,0.00012081,2]
[361059780,1747223465397,-1012.04,0.00012081,2]
[361059781,1747223465406,-438.42,0.00012081,2]
[361059782,1747223465415,-400.0,0.00012081,2]
[361059783,1747223465424,-497.66,0.00012081,2]
[361059784,1747223465434,-567.46,0.00012081,2]
[361059785,1747223465444,-400.0,0.00012081,2]
[361059786,1747223465454,-400.0,0.00012081,2]
[361059787,1747223465465,-400.0,0.00012081,2]
[361059788,1747223465475,-577.79,0.00012081,2]
[361059789,1747223465485,-660.7,0.00012081,2]
[361059790,1747223465495,-866.82,0.00012081,2]
[361059791,1747223465504,-400.0,0.00012081,2]
[361059792,1747223465515,-490.68,0.00012081,2]
[361059793,1747223465527,-419.19,0.00012081,2]
[361059794,1747223465536,-400.0,0.00012081,2]
[361059795,1747223465547,-400.0,0.00012081,2]
[361059796,1747223465557,-400.0,0.00012081,2]
[361059797,1747223465566,-400.0,0.00012081,2]
[361059798,1747223465576,-400.0,0.00012081,2]
[361059799,1747223465586,-400.0,0.00012081,2]
[361059800,1747223465596,-151.0,0.00012081,2]
[361059801,1747223465606,-1220.35,0.00012081,2]
[361059802,1747223465616,-534.07,0.00012081,2]
[361059803,1747223465626,-624.52,0.00012081,2]
[361059804,1747223465636,-400.0,0.00012081,2]
[361059805,1747223465645,-440.12,0.00012081,2]
[361059806,1747223465655,-672.13,0.00012081,2]
[361059807,1747223465665,-272.12984239,0.00012081,2]
[361059808,1747223465675,-1143.1,0.00012081,2]
[361059809,1747223465685,-400.0,0.00012081,2]
[361059810,1747223465695,-400.0,0.00012081,2]
[361059811,1747223465704,-1008.58,0.00012081,2]
[361059812,1747223465714,-400.0,0.00012081,2]
[361059813,1747223465724,-826.91,0.00012081,2]
[361059814,1747223465734,-424.95,0.00012081,2]
[361059815,1747223465745,-412.31,0.00012081,2]
[361059816,1747223465756,-400.0,0.00012081,2]
[361059817,1747223465767,-668.19,0.00012081,2]
[361059818,1747223465780,-591.7,0.00012081,2]
[361059819,1747223465790,-400.0,0.00012081,2]
[361059820,1747223465800,-400.0,0.00012081,2]
[361059821,1747223465810,-787.41,0.00012081,2]
[361059822,1747223465820,-729.42,0.00012081,2]
[361059823,1747223465831,-293.69,0.00012081,2]
[361059824,1747223465843,-401.32,0.00012081,2]
[361059825,1747223465853,-446.45,0.00012081,2]
[361059826,1747223465863,-671.84,0.00012081,2]
[361059827,1747223465875,-916.39,0.00012081,2]
[361059828,1747223465885,-400.0,0.00012081,2]
[361059829,1747223465895,-869.27,0.00012081,2]
[361059830,1747223465905,-151.0,0.00012081,2]
[361059831,1747223465915,-430.42,0.00012081,2]
[361059832,1747223465925,-3442.22,0.00012081,2]
[361059833,1747223465935,-497.91,0.00012081,2]
[361059834,1747223465945,-1099.01,0.00012081,2]
[361059835,1747223465956,-400.0,0.00012081,2]
[361059836,1747223465966,-400.0,0.00012081,2]
[361059837,1747223465976,-2482.19,0.00012081,2]
[361059838,1747223465986,-2349.13,0.00012081,2]
[361059839,1747223465996,-400.0,0.00012081,2]
[361059840,1747223466006,-400.0,0.00012081,2]
[361059841,1747223466016,-400.0,0.00012081,2]
[361059842,1747223466026,-1904.04,0.00012081,2]
[361059843,1747223466036,-400.0,0.00012081,2]
[361059844,1747223466046,-2399.66,0.00012081,2]
[361059845,1747223466056,-474.83,0.00012081,2]
[361059846,1747223466066,-428.65,0.00012081,2]
[361059847,1747223466075,-400.0,0.00012081,2]
[361059848,1747223466085,-1267.76,0.00012081,2]
[361059849,1747223466095,-400.0,0.00012081,2]
[361059850,1747223466105,-1560.97,0.00012081,2]
[361059851,1747223466115,-1624.24,0.00012081,2]
[361059852,1747223466125,-202.908036,0.00012081,2]
[361059853,1747223466135,-410.41,0.00012081,2]
[361059854,1747223466145,-13143.02,0.00012081,2]
[361059855,1747223466156,-202.908036,0.00012081,2]
[361059856,1747223466166,-400.0,0.00012081,2]
[361059857,1747223466176,-151.0,0.00012081,2]
[361059858,1747223466186,-3597.07,0.00012081,2]
[361059859,1747223466196,-2016.14,0.00012081,2]
[361059860,1747223466206,-151.0,0.00012081,2]
[361059861,1747223466216,-428.53,0.00012081,2]
[361059862,1747223466226,-400.0,0.00012081,2]
[361059863,1747223466236,-1532.4,0.00012081,2]
[361059864,1747223466453,-3055.85,0.00012081,2]
[361059865,1747223466469,-400.0,0.00012081,2]
[361059866,1747223466479,-487.01,0.00012081,2]
[361059867,1747223466489,-763.23,0.00012081,2]
[361059868,1747223466499,-151.0,0.00012081,2]
[361059869,1747223466510,-1434.8,0.00012081,2]
[361059870,1747223466519,-151.0,0.00012081,2]
[361059871,1747223466529,-400.0,0.00012081,2]
[361059872,1747223466539,-329.79374861,0.00012081,2]
[361059873,1747223466549,-400.0,0.00012081,2]
[361059874,1747223466558,-1180.25,0.00012081,2]
[361059875,1747223466567,-10293.49,0.00012081,2]
[361059876,1747223466576,-668.96,0.00012081,2]
[361059877,1747223466585,-414.32,0.00012081,2]
[361059878,1747223466595,-400.0,0.00012081,2]
[361059879,1747223466604,-151.0,0.00012081,2]
[361059880,1747223466613,-1663.15,0.00012081,2]
[361059881,1747223466622,-939.36,0.00012081,2]
[361059882,1747223466631,-151.0,0.00012081,2]
[361059883,1747223466640,-400.0,0.00012081,2]
[361059884,1747223466650,-451.34,0.00012081,2]
[361059885,1747223466659,-6446.37,0.00012081,2]
[361059886,1747223466669,-15552.5,0.00012081,2]
[361059887,1747223466679,-400.0,0.00012081,2]
[361059888,1747223466689,-727.42609038,0.00012081,2]
[361059889,1747223467137,-595.24748917,0.00012081,2]
[361059890,1747223467685,-400.0,0.00010984,2]
[361059891,1747223467695,-657.43642045,0.00012081,2]
[361059892,1747223467705,-400.0,0.00012081,2]
[361059893,1747223467714,-886.07,0.00012081,2]
[361059894,1747223467723,-3795.04182558,0.00012081,2]
[361059895,1747223467735,-109.63817442,0.00012081,2]
[361059896,1747223467744,-2420.54,0.00012081,2]
[361059897,1747223467753,-233.29813157,0.00012081,2]
[361059898,1747223467762,-1061.01,0.00012081,2]
[361059899,1747223467771,-200.44778982,0.00012081,2]
[361059900,1747223467781,-400.0,0.00012081,2]
[361059901,1747223467791,-1548.57,0.00012081,2]
[361059902,1747223467800,-248.60364854,0.00012081,2]
[361059903,1747223467810,-4792.09,0.00012081,2]
[361059904,1747223467819,-1542.88,0.00012081,2]
[361059905,1747223467830,-490.04,0.00012081,2]
[361059906,1747223467841,-555.7756146,0.00012081,2]
[361059907,1747223467853,-1957.6643854,0.00012081,2]
[361059908,1747223467863,-400.0,0.00012081,2]
[361059909,1747223467873,-400.0,0.00012081,2]
[361059910,1747223467882,-400.0,0.00012081,2]
[361059911,1747223467891,-5787.27834561,0.00012081,2]
[361059912,1747223467902,-867.194902,0.00012081,2]
[361059913,1747223467919,-317.43676053,0.00012081,2]
[361059914,1747223467930,-479.08999186,0.00012081,2]
[361059915,1747223467940,-1071.07,0.00012081,2]
[361059916,1747223467949,-821.23,0.00012081,2]
[361059917,1747223467958,-145.48899994,0.00012081,2]
[361059918,1747223467970,-339.37100006,0.00012081,2]
[361059919,1747223467980,-400.0,0.00012081,2]
[361059920,1747223467989,-432.02,0.00012081,2]
[361059921,1747223467998,-853.4,0.00012081,2]
[361059922,1747223468008,-787.92788469,0.00012081,2]
[361059923,1747223468022,-313.2,0.00012081,2]
[361059924,1747223468034,-1024.38211531,0.00012081,2]
[361059925,1747223468043,-565.26,0.00012081,2]
[361059926,1747223468052,-903.4,0.00012081,2]
[361059927,1747223468061,-400.0,0.00012081,2]
[361059928,1747223468070,-400.0,0.00012081,2]
[361059929,1747223468080,-739.03,0.00012081,2]
[361059930,1747223468090,-1166.52,0.00012081,2]
[361059931,1747223468099,-400.0,0.00012081,2]
[361059932,1747223468109,-1053.78,0.00012081,2]
[361059933,1747223468118,-1258.39,0.00012081,2]
[361059934,1747223468127,-1159.02,0.00012081,2]
[361059935,1747223468137,-400.0,0.00012081,2]
[361059936,1747223468146,-187.943249,0.00012081,2]
[361059937,1747223468156,-83.16229669,0.00012081,2]
[361059938,1747223468235,-308.55,0.00011258,2]
[361059939,1747223468245,-2251.27380021,0.00012081,2]
[361059940,1747223505169,532.44,8.976e-05,2]
[361059941,1747223638765,150.0,0.00010224,7]
[361059942,1747224033417,-1308.0,0.00026137,120]
[361059943,1747224169090,-25.0,0.00026137,120]
[361059945,1747224320610,-199.76,9.919e-05,2]
[361059946,1747224320632,-7.21292155,9.937e-05,2]
[361059947,1747224322252,-248.67967358,9.937e-05,2]
[361059948,1747224325742,-159.45780694,9.937e-05,2]
[361059949,1747224328191,-219.33475114,9.937e-05,2]
[361059950,1747224329958,-280.66524886,9.937e-05,2]
[361059951,1747224333053,-230.17732457,9.937e-05,2]
[361059952,1747224335662,-174.53423895,9.937e-05,2]
[361059955,1747224347333,2340.17,9.89e-05,2]
[361059956,1747224574233,1199.06,9.885e-05,2]
[361059957,1747224599541,1333.0,0.00026137,120]
[361059960,1747224631448,-970.99304133,9.937e-05,2]
[361059961,1747224631461,-267.00499308,9.937e-05,2]
[361059962,1747224631471,-162.53,9.967e-05,2]
[361059963,1747224631481,-180.91314876,0.0001,2]
[361059964,1747224631493,-269.08685124,0.0001,2]
[361059965,1747224631503,-161.29,0.00010022,2]
[361059966,1747224631512,-1000.0,0.00010068,2]
[361059967,1747224631522,-250.72,0.00010081,2]
[361059968,1747224631532,-411.44836494,0.00010197,2]
[361059969,1747224631543,-365.19994533,0.00010197,2]
[361059970,1747224631571,-1851.03957271,0.00010197,2]
[361059971,1747224631583,-927.61514,0.00010197,2]
[361059972,1747224631595,-1040.73697702,0.00010197,2]
[361059973,1747224631605,-58.16302298,0.00010205,2]
[361059974,1747224631628,-1141.83697702,0.00010205,2]
[361059975,1747224631638,-188.69,0.00010206,2]
[361059976,1747224631647,-300.0,0.00010219,2]
[361059977,1747224631657,-1483.55207799,0.0001022,3]
[361059978,1747224631667,-272.02,0.00010222,2]
[361059979,1747224631676,-166.94,0.00010225,2]
[361059980,1747224631686,-376.35,0.00010249,2]
[361059981,1747224631695,-166.94,0.00010787,2]
[361059982,1747224631704,-1597.3441,0.00010884,2]
[361059983,1747224631713,-190.88226782,0.000109,2]
[361059984,1747224631723,-201.16092424,0.000109,2]
[361059985,1747224631735,-1073.90425003,0.000109,2]
[361059986,1747224631754,-312.5,0.000109,2]
[361059987,1747224631773,-10182.32215566,0.000109,2]
[361059988,1747224631783,-207.4,0.00010958,2]
[361059989,1747224631792,-150.0,0.00010959,2]
[361059990,1747224631803,-150.0,0.00010963,2]
[361059991,1747224631812,-250.0,0.00010964,2]
[361059992,1747224631822,-390.64,0.00010964,2]
[361059994,1747224631832,-150.99,0.00010964,2]
[361059995,1747224631841,-1987.1895099,0.00010964,2]
[361059997,1747224631852,-1166.26282641,0.00010964,2]
[361060000,1747224631864,-906.39902766,0.00010964,2]
[361060002,1747224631876,-640.08863603,0.00010964,2]
[361060004,1747224631885,-500.0,0.00010973,2]
[361060006,1747224631894,-500.0,0.00010973,2]
[361060008,1747224631903,-500.0,0.00010975,2]
[361060010,1747224631913,-500.0,0.00010975,2]
[361060012,1747224631922,-304.78371189,0.00010975,2]
[361060014,1747224631933,-195.21628811,0.00010975,2]
[361060016,1747224631943,-500.0,0.00010975,2]
[361060018,1747224631953,-500.0,0.00010975,2]
[361060020,1747224631962,-500.0,0.00010975,2]
[361060022,1747224631972,-500.0,0.00010975,2]
[361060024,1747224631981,-179.27618105,0.00010975,2]
[361060217,1747224637413,-320.72381895,0.00010975,2]
[361060218,1747224637424,-500.0,0.00010975,2]
[361060220,1747224637433,-500.0,0.00010975,2]
[361060221,1747224637443,-500.0,0.00010975,2]
[361060222,1747224637453,-308.06455252,0.00010975,2]
[361060223,1747224637462,-500.0,0.00010975,2]
[361060224,1747224637472,-500.0,0.00010975,2]
[361060225,1747224637483,-500.0,0.00010975,2]
[361060226,1747224637493,-151.0,0.00010977,2]
[361060227,1747224637502,-2000.0,0.00010977,2]
[361060228,1747224637512,-2000.0,0.00010977,2]
[361060229,1747224637522,-2000.0,0.00010977,2]
[361060230,1747224637532,-368.82405592,0.00010977,2]
[361060231,1747224637542,-551.63474627,0.00010977,2]
[361060232,1747224637552,-668.65185757,0.00010977,2]
[361060233,1747224637563,-798.02,0.00010983,2]
[361060234,1747224637573,-509.901176,0.00010983,2]
[361060235,1747224637582,-5246.11,0.00010983,2]
[361060236,1747224637591,-1466.61,0.00010983,2]
[361060237,1747224637601,-493.49,0.00010983,2]
[361060238,1747224637611,-400.0,0.00010983,2]
[361060239,1747224637621,-3015.626877,0.00010983,2]
[361060240,1747224637631,-183.284461,0.00010983,2]
[361060241,1747224637641,-549.47,0.00010983,2]
[361060242,1747224637651,-719.2,0.00010983,2]
[361060243,1747224637661,-870.05,0.00010983,2]
[361060244,1747224637671,-400.0,0.00010983,2]
[361060245,1747224637680,-400.0,0.00010983,2]
[361060246,1747224637690,-400.0,0.00010983,2]
[361060247,1747224637699,-3572.56,0.00010983,2]
[361060248,1747224637709,-3348.63,0.00010983,2]
[361060249,1747224637719,-1235.77,0.00010983,2]
[361060250,1747224637731,-1213.15,0.00010983,2]
[361060251,1747224637741,-1596.11,0.00010983,2]
[361060252,1747224637752,-400.0,0.00010983,2]
[361060253,1747224637762,-400.0,0.00010983,2]
[361060254,1747224637772,-529.6,0.00010983,2]
[361060255,1747224637782,-722.92,0.00010983,2]
[361060257,1747224637791,-701.47,0.00010983,2]
[361060259,1747224637800,-400.0,0.00010983,2]
[361060261,1747224637810,-432.87,0.00010983,2]
[361060263,1747224637820,-1567.59,0.00010983,2]
[361060265,1747224637829,-1225.95,0.00010983,2]
[361060267,1747224637838,-807.42,0.00010983,2]
[361060269,1747224637847,-42.16156983,0.00010983,2]
[361060276,1747224637906,-357.83843017,0.00010983,2]
[361060278,1747224637916,-1221.45,0.00010983,2]
[361060280,1747224637926,-847.93,0.00010983,2]
[361060282,1747224637935,-770.73,0.00010983,2]
[361060284,1747224637944,-400.0,0.00010983,2]
[361060286,1747224637954,-1083.34,0.00010983,2]
[361060288,1747224637964,-400.0,0.00010983,2]
[361060290,1747224637973,-400.0,0.00010983,2]
[361060292,1747224637983,-3269.09,0.00010983,2]
[361060294,1747224637993,-881.24,0.00010983,2]
[361060296,1747224638002,-1611.13,0.00010983,2]
[361060298,1747224638011,-400.0,0.00010983,2]
[361060300,1747224638021,-609.48123043,0.00010983,2]
[361060303,1747224638041,-2264.99876957,0.00010983,2]
[361060305,1747224638051,-400.0,0.00010983,2]
[361060307,1747224638061,-8410.48,0.00010983,2]
[361060309,1747224638071,-400.0,0.00010983,2]
[361060311,1747224638080,-400.0,0.00010983,2]
[361060313,1747224638090,-1030.09,0.00010983,2]
[361060315,1747224638099,-1482.63,0.00010983,2]
[361060317,1747224638109,-400.0,0.00010983,2]
[361060319,1747224638119,-649.73,0.00010983,2]
[361060321,1747224638129,-1186.3,0.00010983,2]
[361060323,1747224638139,-400.0,0.00010983,2]
[361060325,1747224638147,-494.89,0.00010983,2]
[361060327,1747224638157,-9503.74,0.00010983,2]
[361060329,1747224638166,-1174.95,0.00010983,2]
[361060331,1747224638176,-400.0,0.00010983,2]
[361060333,1747224638186,-400.0,0.00010983,2]
[361060335,1747224638195,-842.94,0.00010983,2]
[361060336,1747224638204,-1793.8,0.00010983,2]
[361060339,1747224638214,-1219.88,0.00010983,2]
[361060341,1747224638223,-1028.88,0.00010983,2]
[361060342,1747224638232,-400.0,0.00010983,2]
[361060344,1747224638242,-1283.13,0.00010983,2]
[361060346,1747224638251,-441.36,0.00010983,2]
[361060348,1747224638261,-400.0,0.00010983,2]
[361060350,1747224638271,-444.75,0.00010983,2]
[361060352,1747224638282,-532.07,0.00010983,2]
[361060354,1747224638295,-400.0,0.00010983,2]
[361060357,1747224638318,-400.0,0.00010983,2]
[361060359,1747224638329,-1224.95,0.00010983,2]
[361060362,1747224638341,-400.0,0.00010983,2]
[361060364,1747224638351,-533.62,0.00010983,2]
[361060365,1747224638361,-449.0,0.00010983,2]
[361060368,1747224638372,-1989.0,0.00010983,2]
[361060370,1747224638382,-400.0,0.00010983,2]
[361060372,1747224638392,-158.22580236,0.00010983,2]
[361060374,1747224638401,-400.0,0.00010984,2]
[361060375,1747224638410,-400.0,0.00010984,2]
[361060378,1747224638420,-400.0,0.00010984,2]
[361060380,1747224638430,-400.0,0.00010984,2]
[361060382,1747224638439,-421.57,0.00010984,2]
[361060384,1747224638450,-162.44059601,0.00010984,2]
[361060386,1747224638462,-400.0,0.00010984,2]
[361060388,1747224638471,-408.52489216,0.00010984,2]
[361060390,1747224638481,-400.0,0.00010984,2]
[361060392,1747224638491,-400.0,0.00010984,2]
[361060394,1747224638500,-400.0,0.00010984,2]
[361060396,1747224638510,-150.0,0.00010984,2]
[361060398,1747224638519,-400.0,0.00010984,2]
[361060400,1747224638529,-667.44,0.00010984,2]
[361060402,1747224638538,-400.0,0.00010984,2]
[361060404,1747224638547,-400.0,0.00010984,2]
[361060406,1747224638557,-662.02,0.00010984,2]
[361060408,1747224638567,-400.0,0.00010984,2]
[361060410,1747224638577,-1090.93,0.00010984,2]
[361060412,1747224638586,-400.0,0.00010984,2]
[361060414,1747224638596,-494.41,0.00010984,2]
[361060416,1747224638606,-400.0,0.00010984,2]
[361060418,1747224638615,-400.0,0.00010984,2]
[361060419,1747224638625,-715.67,0.00010984,2]
[361060421,1747224638634,-1028.84,0.00010984,2]
[361060423,1747224638643,-546.91,0.00010984,2]
[361060424,1747224638653,-400.0,0.00010984,2]
[361060426,1747224638663,-400.0,0.00010984,2]
[361060428,1747224638672,-400.0,0.00010984,2]
[361060430,1747224638681,-400.0,0.00010984,2]
[361060431,1747224638691,-348.84115285,0.00010984,2]
[361060433,1747224638701,-1009.52,0.00010984,2]
[361060435,1747224638710,-400.0,0.00010984,2]
[361060437,1747224638720,-400.0,0.00010984,2]
[361060439,1747224638730,-464.34,0.00010984,2]
[361060441,1747224638739,-400.0,0.00010984,2]
[361060442,1747224638748,-400.0,0.00010984,2]
[361060444,1747224638758,-527.86,0.00010984,2]
[361060446,1747224638767,-400.0,0.00010984,2]
[361060448,1747224638776,-400.0,0.00010984,2]
[361060450,1747224638786,-200.0,0.00010984,2]
[361060452,1747224638795,-400.0,0.00010984,2]
[361060454,1747224638806,-408.23,0.00010984,2]
[361060456,1747224638818,-187.91842554,0.00010984,2]
[361060457,1747224638827,-1316.3,0.00010984,2]
[361060459,1747224638837,-400.0,0.00010984,2]
[361060461,1747224638846,-166.55561851,0.00010984,2]
[361060463,1747224638858,-488.74,0.00010984,2]
[361060465,1747224638869,-650.93,0.00010984,2]
[361060466,1747224638878,-567.42,0.00010984,2]
[361060468,1747224638887,-400.0,0.00010984,2]
[361060470,1747224638897,-400.0,0.00010984,2]
[361060472,1747224638907,-770.32,0.00010984,2]
[361060474,1747224638916,-400.0,0.00010984,2]
[361060476,1747224638925,-400.0,0.00010984,2]
[361060477,1747224638935,-400.0,0.00010984,2]
[361060479,1747224638943,-487.35,0.00010984,2]
[361060481,1747224638953,-400.0,0.00010984,2]
[361060483,1747224638963,-603.14,0.00010984,2]
[361060485,1747224638972,-458.72063364,0.00010984,2]
[361060487,1747224638981,-434.7,0.00010984,2]
[361060488,1747224638991,-400.0,0.00010984,2]
[361060490,1747224639000,-1010.7,0.00010984,2]
[361060492,1747224639009,-716.91,0.00010984,2]
[361060494,1747224639018,-400.0,0.00010984,2]
[361060496,1747224639027,-422.99,0.00010984,2]
[361060497,1747224639036,-400.0,0.00010984,2]
[361060499,1747224639045,-400.0,0.00010984,2]
[361060501,1747224639054,-400.0,0.00010984,2]
[361060503,1747224639066,-250.0,0.00010984,2]
[361060505,1747224639075,-400.0,0.00010984,2]
[361060507,1747224639084,-400.0,0.00010984,2]
[361060509,1747224639093,-400.0,0.00010984,2]
[361060511,1747224639103,-400.0,0.00010984,2]
[361060512,1747224639112,-400.0,0.00010984,2]
[361060514,1747224639121,-400.0,0.00010984,2]
[361060516,1747224639131,-400.0,0.00010984,2]
[361060518,1747224639141,-400.0,0.00010984,2]
[361060520,1747224639150,-406.84,0.00010984,2]
[361060522,1747224639160,-768.42,0.00010984,2]
[361060524,1747224639169,-572.78,0.00010984,2]
[361060525,1747224639179,-400.0,0.00010984,2]
[361060527,1747224639188,-400.0,0.00010984,2]
[361060529,1747224639198,-400.0,0.00010984,2]
[361060531,1747224639207,-400.0,0.00010984,2]
[361060533,1747224639217,-400.0,0.00010984,2]
[361060535,1747224639226,-400.0,0.00010984,2]
[361060536,1747224639235,-400.0,0.00010984,2]
[361060538,1747224639244,-415.53350762,0.00010984,2]
[361060540,1747224639254,-400.0,0.00010984,2]
[361060542,1747224639264,-400.0,0.00010984,2]
[361060544,1747224639275,-400.0,0.00010984,2]
[361060546,1747224639285,-400.0,0.00010984,2]
[361060547,1747224639294,-400.0,0.00010984,2]
[361060549,1747224639306,-400.0,0.00010984,2]
[361060551,1747224639318,-943.34,0.00010984,2]
[361060553,1747224639327,-462.90067994,0.00010984,2]
[361060555,1747224639336,-400.0,0.00010984,2]
[361060557,1747224639346,-400.0,0.00010984,2]
[361060559,1747224639355,-1495.0,0.00010984,2]
[361060561,1747224639364,-400.0,0.00010984,2]
[361060563,1747224639376,-547.04,0.00010984,2]
[361060565,1747224639385,-400.0,0.00010984,2]
[361060567,1747224639394,-1487.15,0.00010984,2]
[361060568,1747224639404,-480.51,0.00010984,2]
[361060570,1747224639413,-548.40454382,0.00010984,2]
[361060572,1747224639423,-756.59,0.00010984,2]
[361060574,1747224639432,-418.88,0.00010984,2]
[361060577,1747224639441,-400.0,0.00010984,2]
[361060579,1747224639451,-1814.09,0.00010984,2]
[361060581,1747224639460,-239.66757265,0.00010984,2]
[361060585,1747224639476,-160.33242735,0.00010984,2]
[361060587,1747224639485,-400.0,0.00010984,2]
[361060589,1747224639494,-400.0,0.00010984,2]
[361060590,1747224639504,-400.0,0.00010984,2]
[361060592,1747224639513,-481.32215823,0.00010984,2]
[361060594,1747224639523,-400.0,0.00010984,2]
[361060596,1747224639532,-400.0,0.00010984,2]
[361060598,1747224639541,-801.19,0.00010984,2]
[361060620,1747224639551,-992.32,0.00010984,2]
[361060624,1747224639816,-400.0,0.00010984,2]
[361060626,1747224639825,-400.0,0.00010984,2]
[361060628,1747224639835,-650.14,0.00010984,2]
[361060630,1747224639844,-400.0,0.00010984,2]
[361060632,1747224639854,-647.18698478,0.00010984,2]
[361060634,1747224639864,-1111.83,0.00010984,2]
[361060636,1747224639873,-465.91,0.00010984,2]
[361060637,1747224639883,-726.39,0.00010984,2]
[361060639,1747224639892,-400.0,0.00010984,2]
[361060641,1747224639901,-400.0,0.00010984,2]
[361060643,1747224639911,-1531.99384184,0.00010984,2]
[361060645,1747224639924,-1082.84615816,0.00010984,2]
[361060647,1747224639933,-438.67,0.00010984,2]
[361060649,1747224639944,-400.0,0.00010984,2]
[361060651,1747224639953,-400.0,0.00010984,2]
[361060653,1747224639963,-400.0,0.00010984,2]
[361060655,1747224639972,-400.0,0.00010984,2]
[361060657,1747224639982,-400.0,0.00010984,2]
[361060659,1747224639991,-1122.75,0.00010984,2]
[361060661,1747224640000,-474.08,0.00010984,2]
[361060662,1747224640010,-329.11657077,0.00010984,2]
[361060665,1747224640022,-70.88342923,0.00010984,2]
[361060667,1747224640032,-473.71731246,0.00010984,2]
[361060668,1747224640041,-400.0,0.00010984,2]
[361060670,1747224640050,-400.0,0.00010984,2]
[361060672,1747224640061,-539.72,0.00010984,2]
[361060674,1747224640071,-400.0,0.00010984,2]
[361060676,1747224640080,-418.91,0.00010984,2]
[361060678,1747224640090,-400.0,0.00010984,2]
[361060680,1747224640099,-662.09466611,0.00010984,2]
[361060692,1747224640220,-24.13533389,0.00010984,2]
[361060694,1747224640230,-611.1,0.00010984,2]
[361060696,1747224640239,-400.0,0.00010984,2]
[361060698,1747224640248,-552.84,0.00010984,2]
[361060700,1747224640257,-400.0,0.00010984,2]
[361060701,1747224640266,-400.0,0.00010984,2]
[361060703,1747224640275,-400.0,0.00010984,2]
[361060705,1747224640285,-400.0,0.00010984,2]
[361060707,1747224640294,-69.68254893,0.00010984,2]
[361060709,1747224640308,-330.31745107,0.00010984,2]
[361060711,1747224640319,-400.0,0.00010984,2]
[361060713,1747224640328,-400.0,0.00010984,2]
[361060715,1747224640337,-381.28697226,0.00010984,2]
[361060717,1747224640349,-18.71302774,0.00010984,2]
[361060719,1747224640359,-441.43,0.00010984,2]
[361060721,1747224640368,-229.18065413,0.00010984,2]
[361060723,1747224640380,-170.81934587,0.00010984,2]
[361060725,1747224640389,-187.51550577,0.00010984,2]
[361060763,1747224640913,-255.78388724,0.00010984,2]
[361060765,1747224640922,-400.0,0.00010984,2]
[361060767,1747224640931,-400.0,0.00010984,2]
[361060769,1747224640940,-329.69604408,0.00010984,2]
[361060781,1747224641039,-70.30395592,0.00010984,2]
[361060783,1747224641049,-442.7823868,0.00010984,2]
[361060785,1747224641062,-154.97417237,0.00010984,2]
[361060946,1747224642576,-452.54,0.00010983,2]
[361061100,1747224645712,-897.58999998,0.00010983,2]
[361061101,1747224645771,-55.37000002,0.00010983,2]